bitfinex/quotes_BTCUSD_20250303
["timestamp","ask_amount","ask_price","bid_price","bid_amount"]
[1740971331587,0.337869,93232.0,93224.0,0.0001706]
[1740971331835,0.144801,93231.0,93224.0,0.0001706]
[1740971332037,0.144787,93240.0,93224.0,0.0001706]
[1740971332201,0.144795,93235.0,93224.0,0.1932516]
[1740971332399,0.3241,93241.0,93229.0,0.144803]
[1740971332600,0.3241,93241.0,93225.0,0.00150163]
[1740971332801,0.144787,93240.0,93229.0,0.144804]
[1740971333120,0.3241,93241.0,93231.0,0.1448]
[1740971333292,0.3241,93241.0,93231.0,0.00150154]
[1740971333493,0.3241,93241.0,93234.0,0.144796]
[1740971333715,0.1548,93240.0,93234.0,0.144796]
[1740971334164,0.1548,93240.0,93233.0,0.144798]
[1740971334339,0.1548,93240.0,93232.0,0.144799]
[1740971334541,0.1548,93240.0,93231.0,0.193068]
[1740971334719,0.1548,93240.0,93233.0,0.144797]
[1740971334916,0.1548,93240.0,93232.0,0.00150147]
[1740971335172,0.1548,93240.0,93239.0,0.144789]
[1740971335872,0.1551412,93240.0,93224.0,0.0001706]
[1740971336271,0.2302412,93240.0,93224.0,0.0001706]
[1740971336514,0.193063,93234.0,93224.0,0.0001706]
[1740971336652,0.144807,93227.0,93224.0,0.0001706]
[1740971336839,0.193052,93239.0,93224.0,0.0001706]
[1740971337041,0.14481,93225.0,93224.0,0.0001706]
[1740971338453,0.3,93239.0,93224.0,0.0001706]
[1740971338768,0.144809,93226.0,93224.0,0.0001706]
[1740971339003,0.14481,93225.0,93224.0,0.0001706]
[1740971340010,0.301,93239.0,93224.0,0.0001706]
[1740971340212,0.01052008,93235.0,93224.0,0.00167217]
[1740971340423,0.144806,93228.0,93224.0,0.00167217]
[1740971340618,0.144806,93228.0,93224.0,0.0001706]
[1740971340824,0.301,93239.0,93224.0,0.0001706]
[1740971340825,0.144808,93227.0,93224.0,0.0001706]
[1740971341024,0.19306,93236.0,93224.0,0.0001706]
[1740971341251,0.1448,93232.0,93224.0,0.00167217]
[1740971341639,0.144798,93234.0,93224.0,0.00167217]
[1740971341845,0.02137484,93238.0,93225.0,0.00150158]
[1740971342426,0.02137484,93238.0,93224.0,0.0001706]
[1740971343370,0.144802,93231.0,93224.0,0.0001706]
[1740971343531,0.1448,93232.0,93224.0,0.0001706]
[1740971344499,0.02137484,93238.0,93224.0,0.0001706]
[1740971344627,0.14481,93225.0,93224.0,0.0001706]
[1740971344841,0.144803,93230.0,93224.0,0.0001706]
[1740971345041,0.02137484,93238.0,93224.0,0.0001706]
[1740971345445,0.14481,93226.0,93224.0,0.0001706]
[1740971345645,0.144807,93228.0,93224.0,0.0001706]
[1740971346047,0.144805,93229.0,93224.0,0.0001706]
[1740971346458,0.144806,93228.0,93224.0,0.0001706]
[1740971347375,0.21442984,93238.0,93224.0,0.0001706]
[1740971347583,0.14481,93225.0,93224.0,0.0001706]
[1740971349627,0.347917,93227.0,93224.0,0.0001706]
[1740971349838,0.15484,93227.0,93224.0,0.0001706]
[1740971350136,0.144809,93226.0,93224.0,0.0001706]
[1740971350302,0.14481,93225.0,93224.0,0.0001706]
[1740971359659,0.15484,93227.0,93224.0,0.0001706]
[1740971359860,0.14481,93225.0,93224.0,0.0001706]
[1740971360693,0.144809,93226.0,93224.0,0.0001706]
[1740971360875,0.15484,93227.0,93224.0,0.0001706]
[1740971361084,0.14481,93225.0,93224.0,0.0001706]
[1740971361284,0.14681,93225.0,93224.0,0.0001706]
[1740971361524,0.14481,93225.0,93224.0,0.0001706]
[1740971361726,0.15484,93227.0,93224.0,0.0001706]
[1740971362298,0.15484,93227.0,93226.0,0.144809]
[1740971363299,0.15484,93227.0,93224.0,0.0001706]
[1740971364773,0.299648,93227.0,93224.0,0.0001706]
[1740971364901,0.15484,93227.0,93224.0,0.0001706]
[1740971365088,0.15584,93227.0,93224.0,0.0001706]
[1740971365292,0.15484,93227.0,93224.0,0.0001706]
[1740971365686,0.15584,93227.0,93224.0,0.0001706]
[1740971365928,0.15484,93227.0,93224.0,0.0001706]
[1740971366395,0.15484,93227.0,93226.0,0.144809]
[1740971367442,0.0003412,93237.0,93224.0,0.1932526]
[1740971367684,0.0003412,93237.0,93224.0,0.0001706]
[1740971367882,0.001,93227.0,93225.0,0.193081]
[1740971368093,0.001,93227.0,93226.0,0.144809]
[1740971368308,0.001,93227.0,93226.0,0.14631045]
[1740971368672,0.0003412,93237.0,93234.0,0.144795]
[1740971369012,0.0003412,93237.0,93236.0,0.144793]
[1740971369309,0.0003412,93237.0,93229.0,0.193071]
[1740971369508,0.0003412,93237.0,93232.0,0.1448]
[1740971369862,0.0003412,93237.0,93233.0,0.144798]
[1740971370255,0.0003412,93237.0,93224.0,0.0001706]
[1740971370527,0.0003412,93237.0,93236.0,0.144793]
[1740971370668,0.0003412,93237.0,93236.0,0.143793]
[1740971371181,0.0003412,93237.0,93234.0,0.144795]
[1740971371575,0.0003412,93237.0,93224.0,0.0001706]
[1740971371777,0.0003412,93237.0,93229.0,0.144804]
[1740971371983,0.0003412,93237.0,93224.0,0.0001706]
[1740971372484,0.0003412,93237.0,93227.0,0.144807]
[1740971372697,0.144794,93236.0,93227.0,0.144807]
[1740971372915,0.0003412,93237.0,93226.0,0.00150155]
[1740971373449,0.0003412,93237.0,93227.0,0.193077]
[1740971373624,0.0003412,93237.0,93231.0,0.144801]
[1740971373791,0.0003412,93237.0,93228.0,0.193075]
[1740971373995,0.0003412,93237.0,93229.0,0.001]
[1740971374213,0.0003412,93237.0,93225.0,0.19458055]
[1740971374433,0.144795,93235.0,93226.0,0.144809]
[1740971374654,0.144795,93235.0,93227.0,0.001]
[1740971374793,0.0003412,93237.0,93224.0,0.0001706]
[1740971374996,0.144793,93236.0,93224.0,0.0001706]
[1740971375233,0.0003412,93237.0,93229.0,0.144803]
[1740971375416,0.1451342,93237.0,93229.0,0.001]
[1740971375634,0.1451342,93237.0,93228.0,0.144806]
[1740971375830,0.144795,93235.0,93226.0,0.144808]
[1740971376544,0.144803,93231.0,93224.0,0.0001706]
[1740971376740,0.0797,93236.0,93224.0,0.0001706]
[1740971377263,0.224495,93236.0,93226.0,0.144808]
[1740971377423,0.0003412,93237.0,93231.0,0.144801]
[1740971377761,0.0003412,93237.0,93224.0,0.0001706]
[1740971377961,0.0003412,93237.0,93231.0,0.144801]
[1740971378168,0.0003412,93237.0,93224.0,0.00167215]
[1740971378524,0.0003412,93237.0,93235.0,0.144795]
[1740971378948,0.0003412,93237.0,93229.0,0.193071]
[1740971379182,0.0003412,93237.0,93234.0,0.144796]
[1740971379382,0.0003412,93237.0,93236.0,0.144793]
[1740971379595,0.0003412,93237.0,93233.0,0.193064]
[1740971379929,0.0003412,93237.0,93231.0,0.001]
[1740971379930,0.0003412,93237.0,93236.0,0.144793]
[1740971380065,0.0003412,93237.0,93231.0,0.001]
[1740971380265,0.0003412,93237.0,93232.0,0.144799]
[1740971380529,0.0003412,93237.0,93234.0,0.144796]
[1740971381075,0.0003412,93237.0,93235.0,0.144795]
[1740971381282,0.0003412,93237.0,93235.0,0.145795]
[1740971381491,0.0003412,93237.0,93235.0,0.144795]
[1740971381844,0.0003412,93237.0,93236.0,0.144793]
[1740971382117,0.0003412,93237.0,93236.0,0.14629443]
[1740971383325,0.0003412,93237.0,93236.0,0.19629443]
[1740971383521,0.0003412,93237.0,93236.0,0.27129443]
[1740971383705,0.0003412,93237.0,93236.0,0.269793]
[1740971384624,0.0003412,93237.0,93236.0,0.774421]
[1740971384830,0.0013412,93237.0,93236.0,0.831865]
[1740971385036,0.0003412,93237.0,93236.0,0.830865]
[1740971385363,0.0013412,93237.0,93236.0,0.831865]
[1740971389313,0.0013412,93237.0,93236.0,1.131865]
[1740971389487,0.0013412,93237.0,93236.0,1.181865]
[1740971389696,0.0013412,93237.0,93236.0,0.620793]
[1740971389895,0.0013412,93237.0,93236.0,1.614058]
[1740971390264,6e-07,93240.0,93239.0,0.627889]
[1740971390738,0.1548,93270.0,93239.0,0.627889]
[1740971390739,0.1548,93270.0,93269.0,0.144742]
[1740971390938,0.1548,93270.0,93269.0,0.14624283]
[1740971391161,0.1548,93270.0,93269.0,0.25221464]
[1740971391342,0.0003412,93273.0,93272.0,0.144737]
[1740971391542,0.0003412,93273.0,93272.0,0.17514667]
[1740971391747,0.0003412,93273.0,93272.0,0.2522094]
[1740971391921,0.0003412,93273.0,93272.0,0.25070881]
[1740971392120,0.0003412,93273.0,93272.0,0.84744991]
[1740971392356,0.0003412,93273.0,93272.0,2.08399095]
[1740971392518,0.0003412,93273.0,93272.0,1.99276095]
[1740971392719,0.0013412,93273.0,93272.0,1.99676095]
[1740971392931,0.0013412,93273.0,93272.0,1.94847595]
[1740971393159,0.0013412,93273.0,93272.0,1.54311695]
[1740971393920,0.0003412,93273.0,93272.0,1.53911695]
[1740971394145,0.0003412,93273.0,93272.0,1.54611695]
[1740971394493,0.0003412,93273.0,93272.0,1.53911695]
[1740971394884,0.0003412,93273.0,93272.0,1.62471695]
[1740971396398,0.000341,93313.0,93285.0,0.05]
[1740971396666,0.000341,93313.0,93312.0,0.144675]
[1740971396869,0.000341,93313.0,93312.0,0.14617493]
[1740971397205,0.000341,93313.0,93304.0,0.3]
[1740971397404,0.000341,93313.0,93309.0,0.144679]
[1740971397628,0.000341,93313.0,93311.0,0.144677]
[1740971398057,0.001341,93313.0,93312.0,0.007]
[1740971398255,0.000341,93313.0,93311.0,0.15550418]
[1740971399933,0.000341,93313.0,93311.0,0.144677]
[1740971400337,0.000341,93313.0,93312.0,0.00150006]
[1740971400598,0.000341,93313.0,93311.0,0.144677]
[1740971400789,0.000341,93313.0,93312.0,0.00150005]
[1740971400949,0.000341,93313.0,93312.0,0.05650005]
[1740971401292,0.000341,93313.0,93312.0,1.34858505]
[1740971401536,0.000341,93313.0,93312.0,1.347085]
[1740971401733,0.000341,93313.0,93312.0,1.207774]
[1740971401936,0.000341,93313.0,93312.0,0.4483728]
[1740971402140,0.000341,93313.0,93312.0,0.306]
[1740971403519,0.000341,93313.0,93312.0,0.006]
[1740971404303,0.000341,93313.0,93312.0,0.00750013]
[1740971404512,0.000341,93313.0,93312.0,0.006]
[1740971404974,0.000341,93313.0,93300.0,0.192924]
[1740971405116,0.000341,93313.0,93305.0,0.192915]
[1740971405335,0.000341,93313.0,93307.0,0.144682]
[1740971405539,0.225315,93313.0,93312.0,0.003]
[1740971405741,0.080641,93313.0,93300.0,0.0001201]
[1740971405939,0.144688,93304.0,93300.0,0.0001201]
[1740971406144,0.144692,93301.0,93300.0,0.0001201]
[1740971407905,0.144689,93303.0,93300.0,0.0001201]
[1740971408049,0.144692,93301.0,93300.0,0.0001201]
[1740971408901,0.144692,93301.0,93300.0,0.0041201]
[1740971409144,0.94578985,93301.0,93300.0,0.0041201]
[1740971409310,0.94578985,93301.0,93300.0,1e-07]
[1740971409311,0.970212,93301.0,93300.0,1e-07]
[1740971409721,0.519825,93280.0,93238.0,0.14479]
[1740971409925,1.046445,93280.0,93242.0,0.144783]
[1740971410124,0.19299,93269.0,93248.0,0.09480626]
[1740971410300,0.4037,93268.0,93248.0,0.09480626]
[1740971410502,0.144764,93255.0,93248.0,0.09480626]
[1740971410700,0.192996,93266.0,93248.0,0.09480626]
[1740971410935,0.193012,93259.0,93248.0,0.09480626]
[1740971411104,0.4037,93268.0,93248.0,0.09480626]
[1740971411305,0.144761,93257.0,93249.0,0.00150126]
[1740971411505,0.144762,93257.0,93248.0,0.09480626]
[1740971411868,0.4037,93268.0,93248.0,0.09480626]
[1740971411869,0.193008,93260.0,93248.0,0.09630746]
[1740971412074,0.4037,93268.0,93248.0,0.09630746]
[1740971412234,0.144761,93257.0,93249.0,0.00150118]
[1740971412408,0.144761,93257.0,93248.0,0.09630746]
[1740971412751,0.14476,93258.0,93248.0,0.24408146]
[1740971412982,0.14476,93258.0,93248.0,0.24108146]
[1740971413138,0.14476,93258.0,93249.0,0.144772]
[1740971413731,0.193002,93263.0,93249.0,0.144772]
[1740971413963,0.144759,93259.0,93250.0,0.00150118]
[1740971414140,0.144759,93259.0,93248.0,0.00150119]
[1740971414355,0.4037,93268.0,93248.0,0.00150119]
[1740971414720,0.4037,93268.0,93249.0,0.002]
[1740971414721,0.192999,93265.0,93249.0,0.002]
[1740971415082,0.144752,93263.0,93252.0,0.144768]
[1740971415225,0.144752,93263.0,93253.0,0.14626812]
[1740971415581,0.4037,93268.0,93253.0,0.144767]
[1740971415787,0.4037,93268.0,93254.0,0.00150111]
[1740971416017,0.144752,93263.0,93252.0,0.144767]
[1740971416135,0.144752,93263.0,93253.0,0.144766]
[1740971416555,0.192996,93266.0,93253.0,0.144767]
[1740971417370,0.144747,93266.0,93257.0,0.144759]
[1740971417687,0.14475,93264.0,93256.0,0.144762]
[1740971417850,0.144751,93264.0,93254.0,0.00150111]
[1740971418066,0.41432179,93268.0,93257.0,0.14476]
[1740971418268,0.4037,93268.0,93255.0,0.193019]
[1740971418475,0.4037,93268.0,93245.0,0.00150111]
[1740971418677,0.15472,93267.0,93260.0,0.144756]
[1740971418876,0.15472,93267.0,93261.0,0.144754]
[1740971419077,0.15472,93267.0,93255.0,0.193018]
[1740971419490,0.15472,93267.0,93262.0,0.144752]
[1740971419879,0.15472,93267.0,93259.0,0.144756]
[1740971420218,0.299465,93267.0,93260.0,0.144755]
[1740971420394,0.15472,93267.0,93257.0,0.001]
[1740971420608,0.15472,93267.0,93253.0,0.0001703]
[1740971420807,0.144747,93266.0,93253.0,0.00167133]
[1740971420977,0.15472,93267.0,93253.0,0.0001703]
[1740971421185,0.15472,93267.0,93253.0,0.00167133]
[1740971421439,0.15472,93267.0,93266.0,0.144747]
[1740971421885,0.15472,93267.0,93253.0,0.19469233]
[1740971422096,0.15472,93267.0,93260.0,0.144755]
[1740971422272,0.15472,93267.0,93253.0,0.0001703]
[1740971422515,0.15472,93267.0,93254.0,0.193021]
[1740971422662,0.15472,93267.0,93255.0,0.00150102]
[1740971423146,0.15472,93267.0,93257.0,0.193015]
[1740971423378,0.15472,93267.0,93258.0,0.00150102]
[1740971423588,0.15472,93267.0,93259.0,0.19301]
[1740971423814,0.15472,93267.0,93266.0,0.145747]
[1740971424045,0.15472,93267.0,93266.0,0.144747]
[1740971424981,0.15472,93267.0,93266.0,0.147747]
[1740971426094,0.15472,93267.0,93266.0,0.1587234]
[1740971430767,0.1550606,93267.0,93266.0,0.1587234]
[1740971431264,0.1550606,93267.0,93266.0,0.1557234]
[1740971431400,0.1550606,93267.0,93240.0,0.12704526]
[1740971431401,0.1550606,93267.0,93264.0,0.144748]
[1740971431740,0.2998056,93267.0,93266.0,0.002]
[1740971431981,0.144748,93265.0,93253.0,0.00029064]
[1740971432186,0.144748,93265.0,93258.0,0.144759]
[1740971432386,0.0798,93266.0,93253.0,0.00029064]
[1740971432528,0.0798,93266.0,93254.0,0.144765]
[1740971432732,0.192998,93265.0,93253.0,0.19331164]
[1740971432935,0.144753,93262.0,93254.0,0.144765]
[1740971433140,0.0798,93266.0,93253.0,0.00029064]
[1740971433336,0.0798,93266.0,93260.0,0.144756]
[1740971433557,0.0798,93266.0,93253.0,0.00029064]
[1740971433762,0.1550606,93267.0,93264.0,0.003]
[1740971433934,0.2998056,93267.0,93264.0,0.003]
[1740971434135,0.144747,93266.0,93259.0,0.144758]
[1740971434456,0.1550606,93267.0,93255.0,0.193018]
[1740971434635,0.1550606,93267.0,93253.0,0.00329064]
[1740971434636,0.144765,93254.0,93253.0,0.00029064]
[1740971435436,0.220565,93254.0,93253.0,0.00029064]
[1740971437046,0.220565,93254.0,93253.0,0.00429064]
[1740971439061,0.0758,93254.0,93253.0,0.00429064]
[1740971439674,0.220565,93254.0,93253.0,0.00429064]
[1740971441115,0.893165,93254.0,93253.0,0.00429064]
[1740971444054,0.893165,93254.0,93253.0,0.00029064]
[1740971444246,0.897165,93254.0,93253.0,0.00029064]
[1740971444802,0.897165,93254.0,93253.0,0.00129064]
[1740971446636,0.4039,93254.0,93253.0,0.00129064]
[1740971446763,0.004,93254.0,93253.0,0.14605764]
[1740971448092,0.004,93254.0,93253.0,0.00129064]
[1740971449006,0.148765,93254.0,93253.0,0.00129064]
[1740971449210,0.448765,93254.0,93253.0,0.00129064]
[1740971449875,0.577865,93254.0,93253.0,0.00129064]
[1740971450061,0.573865,93254.0,93253.0,0.00029064]
[1740971450474,0.576865,93254.0,93253.0,0.00029064]
[1740971450901,0.573865,93254.0,93253.0,0.00029064]
[1740971451056,0.576865,93254.0,93253.0,0.00029064]
[1740971451399,0.573865,93254.0,93253.0,0.00029064]
[1740971451874,0.574865,93254.0,93253.0,0.00029064]
[1740971452205,0.897965,93254.0,93253.0,0.00029064]
[1740971453693,0.897965,93254.0,93253.0,0.01029064]
[1740971454083,0.900965,93254.0,93253.0,0.01029064]
[1740971454902,0.897965,93254.0,93253.0,0.01029064]
[1740971455322,0.900965,93254.0,93253.0,0.01029064]
[1740971455919,0.772865,93254.0,93253.0,0.01029064]
[1740971457188,0.768865,93254.0,93253.0,0.01029064]
[1740971458532,0.923665,93254.0,93253.0,0.01029064]
[1740971459807,1.423665,93254.0,93253.0,0.01029064]
[1740971461674,1.554065,93254.0,93253.0,0.01029064]
[1740971462217,1.557065,93254.0,93253.0,0.01029064]
[1740971463260,1.5858907,93254.0,93253.0,0.01029064]
[1740971463667,1.554065,93254.0,93253.0,0.01029064]
[1740971464537,1.558065,93254.0,93253.0,0.01029064]
[1740971465926,1.123665,93254.0,93253.0,0.01029064]
[1740971466219,1.426665,93254.0,93253.0,0.01029064]
[1740971467179,1.2819,93254.0,93253.0,0.01029064]
[1740971467379,1.426665,93254.0,93253.0,0.01029064]
[1740971467766,1.428665,93254.0,93253.0,0.01029064]
[1740971467966,1.423665,93254.0,93253.0,0.01029064]
[1740971468850,1.2789,93254.0,93253.0,0.01029064]
[1740971469056,1.423665,93254.0,93253.0,0.01129064]
[1740971471635,1.2789,93254.0,93253.0,0.01129064]
[1740971472858,0.9548,93254.0,93253.0,0.01129064]
[1740971473648,0.9548,93254.0,93253.0,0.15605764]
[1740971475231,0.9548,93254.0,93253.0,0.01129064]
[1740971475729,0.9548,93254.0,93253.0,0.15605764]
[1740971477816,0.6548,93254.0,93253.0,0.15605764]
[1740971478235,0.9548,93254.0,93253.0,0.15605764]
[1740971478635,0.6548,93254.0,93253.0,0.15605764]
[1740971482510,0.5,93254.0,93253.0,0.15605764]
[1740971485226,0.5,93254.0,93253.0,0.15505764]
[1740971485616,0.501,93254.0,93253.0,0.15905764]
[1740971487708,0.501,93254.0,93253.0,0.01429064]
[1740971487911,0.501,93254.0,93253.0,0.15905764]
[1740971488111,0.501,93254.0,93253.0,0.01429064]
[1740971488311,0.501,93254.0,93253.0,0.15905764]
[1740971488876,0.5,93254.0,93253.0,0.15505764]
[1740971489031,0.5,93254.0,93253.0,0.15805764]
[1740971489236,0.5,93254.0,93253.0,0.01329064]
[1740971489474,0.5,93254.0,93253.0,0.15505764]
[1740971489656,0.5,93254.0,93253.0,0.01529064]
[1740971490227,0.5,93254.0,93253.0,0.01029064]
[1740971490341,0.5,93254.0,93253.0,0.01429064]
[1740971490542,0.5,93254.0,93253.0,0.15905764]
[1740971491502,0.5,93254.0,93253.0,0.01429064]
[1740971491701,0.644765,93254.0,93253.0,0.01429064]
[1740971492648,0.644765,93254.0,93253.0,0.01029064]
[1740971492890,0.644765,93254.0,93253.0,0.01329064]
[1740971493210,1.03388537,93254.0,93253.0,0.01029064]
[1740971493632,1.03388537,93254.0,93253.0,0.01329064]
[1740971494805,1.35798537,93254.0,93253.0,0.01329064]
[1740971495004,1.40408537,93254.0,93253.0,0.01329064]
[1740971495207,1.43592796,93254.0,93253.0,0.01329064]
[1740971495414,1.40408537,93254.0,93253.0,0.01329064]
[1740971495611,1.40408537,93254.0,93253.0,0.01029064]
[1740971495817,1.393165,93254.0,93253.0,0.01029064]
[1740971496038,1.394165,93254.0,93253.0,0.01029064]
[1740971496641,1.396165,93254.0,93253.0,0.01029064]
[1740971496938,1.471445,93254.0,93253.0,0.01029064]
[1740971497346,1.472445,93254.0,93253.0,0.01029064]
[1740971497544,0.9033,93254.0,93253.0,0.01029064]
[1740971497776,0.8251,93254.0,93253.0,0.01029064]
[1740971497921,0.501,93254.0,93253.0,0.01029064]
[1740971498506,0.5,93254.0,93253.0,0.01029064]
[1740971498927,0.501,93254.0,93253.0,0.01029064]
[1740971499132,0.5,93254.0,93253.0,0.01029064]
[1740971499550,0.5,93254.0,93253.0,0.15505764]
[1740971499998,0.5,93254.0,93253.0,0.01129064]
[1740971500386,0.5,93254.0,93253.0,0.15605764]
[1740971503330,0.5,93254.0,93253.0,0.15505764]
[1740971503709,0.5,93254.0,93253.0,0.15805764]
[1740971504863,0.5,93254.0,93253.0,0.15505764]
[1740971505200,0.5,93254.0,93253.0,0.15905764]
[1740971505645,0.5,93254.0,93253.0,0.15505764]
[1740971505800,0.501,93254.0,93253.0,0.16205764]
[1740971507208,0.501,93254.0,93253.0,0.20985764]
[1740971507836,0.501,93254.0,93253.0,1.03431464]
[1740971508188,0.501,93254.0,93253.0,1.16571464]
[1740971508612,0.501,93254.0,93253.0,1.21571464]
[1740971509123,0.501,93254.0,93253.0,1.13262464]
[1740971509261,0.501,93254.0,93253.0,0.60200564]
[1740971510063,0.501,93254.0,93253.0,0.45687864]
[1740971510489,0.501,93254.0,93253.0,0.46736371]
[1740971510848,0.501,93254.0,93253.0,0.45526371]
[1740971514307,0.501,93254.0,93253.0,0.46319083]
[1740971518132,0.501,93254.0,93253.0,0.43786983]
[1740971518606,0.501,93254.0,93253.0,1.66531683]
[1740971519056,0.501,93254.0,93253.0,1.33767283]
[1740971519601,0.501,93254.0,93253.0,1.29970583]
[1740971520037,0.501,93254.0,93253.0,1.03699183]
[1740971522321,0.501,93254.0,93253.0,0.95879183]
[1740971522555,0.501,93254.0,93253.0,0.81767983]
[1740971522751,0.501,93254.0,93253.0,0.71927083]
[1740971524081,0.501,93254.0,93253.0,0.43786983]
[1740971524294,0.501,93254.0,93253.0,0.17254271]
[1740971524437,0.501,93254.0,93253.0,0.1740438]
[1740971524641,0.501,93254.0,93253.0,0.57221171]
[1740971524859,0.501,93254.0,93253.0,0.30070271]
[1740971525279,0.501,93254.0,93253.0,0.78697071]
[1740971525485,0.501,93254.0,93253.0,1.01119171]
[1740971525689,0.501,93254.0,93253.0,1.52519516]
[1740971526025,0.084028,93254.0,93253.0,1.52519516]
[1740971526966,1e-06,93254.0,93253.0,1.52519516]
[1740971527169,1e-06,93254.0,93253.0,1.44703516]
[1740971527369,1e-06,93254.0,93253.0,1.52519516]
[1740971527574,1e-06,93254.0,93253.0,1.48889171]
[1740971528964,1e-06,93254.0,93253.0,1.43889171]
[1740971529186,1e-06,93254.0,93253.0,0.97525271]
[1740971529393,1e-06,93254.0,93253.0,0.57780271]
[1740971529579,1e-06,93254.0,93253.0,0.17254271]
[1740971530156,1e-06,93254.0,93253.0,0.1740438]
[1740971530560,1e-06,93254.0,93253.0,0.16355873]
[1740971530774,0.079801,93254.0,93253.0,0.01729064]
[1740971531080,0.269766,93254.0,93253.0,0.01729064]
[1740971531543,1e-06,93254.0,93253.0,0.01729064]
[1740971531811,0.321396,93266.0,93253.0,0.01029064]
[1740971531968,0.0832,93255.0,93253.0,0.01029064]
[1740971532169,0.0832,93255.0,93254.0,0.144765]
[1740971532758,0.0756,93262.0,93261.0,0.144755]
[1740971533611,0.0756,93262.0,93259.0,0.193009]
[1740971533612,0.0003406,93267.0,93266.0,0.144747]
[1740971534394,0.0003406,93267.0,93261.0,0.193004]
[1740971534596,0.0003406,93267.0,93253.0,0.20331264]
[1740971534802,0.0003406,93267.0,93263.0,0.14475]
[1740971535239,0.0003406,93267.0,93253.0,0.20331264]
[1740971535621,0.0003406,93267.0,93266.0,0.144747]
[1740971536021,0.0013406,93267.0,93266.0,0.144747]
[1740971536469,0.0003406,93267.0,93266.0,0.144747]
[1740971538454,0.0003406,93267.0,93266.0,0.146747]
[1740971541610,0.0003406,93267.0,93266.0,0.196747]
[1740971542750,0.0003406,93267.0,93266.0,0.194747]
[1740971542952,0.0003406,93267.0,93266.0,0.144747]
[1740971543295,0.0013406,93267.0,93266.0,0.151747]
[1740971544910,0.0013406,93267.0,93266.0,0.15324781]
[1740971545771,0.0013406,93267.0,93266.0,0.151747]
[1740971545971,0.0013406,93267.0,93266.0,0.15324775]
[1740971546732,0.0013406,93267.0,93266.0,1.24171475]
[1740971547056,0.0013406,93267.0,93266.0,1.595256]
[1740971547334,0.0013406,93267.0,93266.0,1.63155945]
[1740971547716,0.0013406,93267.0,93266.0,1.12744045]
[1740971549104,0.0013406,93267.0,93266.0,1.42744045]
[1740971549308,0.0013406,93267.0,93266.0,1.47744045]
[1740971549518,6e-07,93267.0,93266.0,1.63427747]
[1740971549716,6e-07,93267.0,93266.0,1.07198747]
[1740971549929,6e-07,93267.0,93266.0,0.926847]
[1740971550349,6e-07,93267.0,93266.0,0.826847]
[1740971550567,0.0754,93282.0,93268.0,0.19299]
[1740971550774,0.0754,93282.0,93274.0,0.192978]
[1740971550974,0.0754,93282.0,93266.0,0.192996]
[1740971551178,0.07511587,93282.0,93265.0,0.09480626]
[1740971551565,0.07511587,93282.0,93280.0,0.144724]
[1740971551776,0.07511587,93282.0,93267.0,0.192994]
[1740971551777,0.15476,93283.0,93268.0,0.00150076]
[1740971552109,0.15476,93283.0,93282.0,0.144722]
[1740971553107,0.15476,93283.0,93268.0,0.003]
[1740971553269,0.15483693,93283.0,93282.0,0.144722]
[1740971553675,0.15483693,93283.0,93282.0,0.147722]
[1740971554232,0.15483693,93283.0,93282.0,0.144722]
[1740971554642,7.693e-05,93283.0,93282.0,0.144722]
[1740971556007,7.693e-05,93283.0,93282.0,0.147722]
[1740971556207,7.693e-05,93283.0,93282.0,0.15839615]
[1740971556630,7.693e-05,93283.0,93282.0,0.147722]
[1740971557233,7.693e-05,93283.0,93282.0,0.1478923]
[1740971557450,0.00041753,93283.0,93282.0,0.1478923]
[1740971559523,0.00041753,93283.0,93282.0,0.14939297]
[1740971559721,0.00041753,93283.0,93282.0,0.1478923]
[1740971560255,0.00041753,93283.0,93282.0,0.14939273]
[1740971560462,0.00041753,93283.0,93282.0,0.14639273]
[1740971560805,0.00041753,93283.0,93282.0,0.47849273]
[1740971560998,0.00041753,93283.0,93282.0,0.4769923]
[1740971561210,0.07751753,93283.0,93282.0,0.0051703]
[1740971561341,0.52223753,93283.0,93282.0,0.0051703]
[1740971561954,0.53275117,93283.0,93282.0,0.0051703]
[1740971562501,0.53275117,93283.0,93282.0,0.0001703]
[1740971562863,0.53275117,93283.0,93282.0,0.0061703]
[1740971564372,0.53275117,93283.0,93282.0,0.0001703]
[1740971564886,0.85685117,93283.0,93282.0,0.0001703]
[1740971566168,0.84633753,93283.0,93282.0,0.0001703]
[1740971567308,0.144764,93255.0,93237.0,0.01988054]
[1740971567485,0.221164,93255.0,93237.0,0.01988054]
[1740971567853,0.221164,93255.0,93237.0,0.03071423]
[1740971568750,0.22124089,93255.0,93237.0,0.01083369]
[1740971569099,0.22124089,93255.0,93254.0,0.0021704]
[1740971570158,0.07647689,93255.0,93254.0,0.0021704]
[1740971571662,0.22124089,93255.0,93254.0,0.0021704]
[1740971571868,0.07647689,93255.0,93254.0,0.0021704]
[1740971572702,7.689e-05,93255.0,93254.0,0.0021704]
[1740971574965,7.689e-05,93255.0,93254.0,0.0001704]
[1740971575496,7.689e-05,93255.0,93254.0,0.0031704]
[1740971576048,7.689e-05,93255.0,93254.0,0.0001704]
[1740971576508,7.689e-05,93255.0,93254.0,0.0041704]
[1740971576672,7.689e-05,93255.0,93254.0,0.0001704]
[1740971577085,7.689e-05,93255.0,93254.0,0.0041704]
[1740971577949,7.689e-05,93255.0,93254.0,0.15043657]
[1740971578287,7.689e-05,93255.0,93254.0,0.14643657]
[1740971578804,7.689e-05,93255.0,93254.0,0.15143657]
[1740971579008,7.689e-05,93255.0,93254.0,0.00167157]
[1740971579189,7.689e-05,93255.0,93254.0,0.00667157]
[1740971579526,7.689e-05,93255.0,93254.0,0.00167157]
[1740971579736,7.689e-05,93255.0,93254.0,0.0001704]
[1740971579961,7.689e-05,93255.0,93254.0,0.0051704]
[1740971580171,0.14484089,93255.0,93254.0,0.0051704]
[1740971580439,0.22554089,93255.0,93254.0,0.0051704]
[1740971581398,0.22554089,93255.0,93254.0,0.0001704]
[1740971581598,0.22554089,93255.0,93254.0,0.0021704]
[1740971582060,0.22554089,93255.0,93254.0,0.0001704]
[1740971582622,0.08077689,93255.0,93254.0,0.0001704]
[1740971582894,0.22554089,93255.0,93254.0,0.0001704]
[1740971583757,0.08077689,93255.0,93254.0,0.0001704]